bitfinex/quotes_BTCUSD_20250108
["timestamp","ask_amount","ask_price","bid_price","bid_amount"]
[1736318727906,0.1266,95939.0,95919.0,0.0102962]
[1736318728128,0.1266,95939.0,95920.0,0.10427474]
[1736318728558,0.208467,95938.0,95920.0,0.10427474]
[1736318728759,0.1266,95939.0,95920.0,0.10427474]
[1736318728901,0.1266,95939.0,95921.0,0.00104244]
[1736318729101,0.208477,95934.0,95921.0,0.10427474]
[1736318729346,0.208467,95938.0,95921.0,0.10427474]
[1736318729971,0.1266,95939.0,95921.0,0.10427474]
[1736318730348,0.0779,95938.0,95910.0,8.52e-05]
[1736318730565,0.1266,95921.0,95910.0,8.52e-05]
[1736318730824,0.1266,95921.0,95899.0,0.27972983]
[1736318730825,0.0779,95920.0,95899.0,0.27972983]
[1736318731121,0.0779,95920.0,95884.0,0.27972983]
[1736318731122,0.1266,95902.0,95884.0,0.27972983]
[1736318731321,0.208573,95890.0,95884.0,0.27972983]
[1736318731522,0.208576,95889.0,95884.0,0.27972983]
[1736318731661,0.1266,95902.0,95884.0,0.27987887]
[1736318731859,0.1266,95902.0,95884.0,0.00014904]
[1736318731860,0.208571,95891.0,95884.0,0.00014904]
[1736318732992,0.417144,95890.0,95884.0,0.00014904]
[1736318733203,0.0816,95888.0,95884.0,0.00014904]
[1736318733413,0.0459,95887.0,95884.0,0.00014904]
[1736318733799,0.208581,95886.0,95884.0,0.00014904]
[1736318736375,0.0459,95887.0,95884.0,0.00014904]
[1736318736840,0.208581,95886.0,95884.0,0.00014904]
[1736318737249,0.0459,95887.0,95884.0,0.00014904]
[1736318738486,0.0795065,95887.0,95884.0,0.00014904]
[1736318738689,0.0459,95887.0,95884.0,0.00014904]
[1736318739302,0.25448,95887.0,95884.0,0.00014904]
[1736318740418,0.10427474,95886.0,95884.0,0.00014904]
[1736318740630,0.524234,95885.0,95884.0,0.00014904]
[1736318740825,0.48046274,95885.0,95884.0,0.00014904]
[1736318741036,0.167605,95885.0,95884.0,0.00014904]
[1736318741211,0.25448,95887.0,95884.0,0.00014904]
[1736318741417,0.0459,95887.0,95884.0,0.00014904]
[1736318741807,0.208581,95886.0,95884.0,0.00014904]
[1736318743830,0.78590974,95885.0,95872.0,0.071927]
[1736318743982,0.18617474,95885.0,95872.0,0.071927]
[1736318744204,0.208587,95883.0,95872.0,0.071927]
[1736318744411,0.208601,95877.0,95872.0,0.071927]
[1736318745430,0.208587,95883.0,95872.0,0.071927]
[1736318746219,0.208591,95881.0,95872.0,0.071927]
[1736318746420,0.208606,95875.0,95872.0,0.071927]
[1736318748021,0.0814,95874.0,95872.0,0.071927]
[1736318753290,0.208609,95873.0,95872.0,0.071927]
[1736318753494,0.2584702,95873.0,95872.0,0.071927]
[1736318754455,0.0814,95874.0,95872.0,0.071927]
[1736318759157,0.208609,95873.0,95872.0,0.061927]
[1736318759970,0.0814,95874.0,95872.0,0.061927]
[1736318760175,0.208609,95873.0,95872.0,0.061927]
[1736318760856,0.0814,95874.0,95872.0,0.061927]
[1736318761263,0.208609,95873.0,95872.0,0.061927]
[1736318762144,0.2584705,95873.0,95872.0,0.061927]
[1736318765197,0.0814,95874.0,95872.0,0.061927]
[1736318765399,0.208587,95883.0,95872.0,0.061927]
[1736318765600,0.208587,95883.0,95873.0,0.00468751]
[1736318765755,0.208587,95883.0,95872.0,0.061927]
[1736318765957,0.0419,95884.0,95872.0,0.061927]
[1736318766158,0.208589,95882.0,95872.0,0.061927]
[1736318766386,0.0378581,95883.0,95872.0,0.061927]
[1736318766387,0.208609,95873.0,95872.0,0.061927]
[1736318766605,0.771219,95873.0,95872.0,0.061927]
[1736318766833,0.880019,95873.0,95872.0,0.061927]
[1736318767253,0.880019,95873.0,95853.0,8.52e-05]
[1736318767254,0.1,95871.0,95853.0,8.52e-05]
[1736318767403,0.208646,95856.0,95855.0,0.0002382]
[1736318767766,0.290846,95856.0,95855.0,0.0002382]
[1736318768849,0.0822,95856.0,95855.0,0.0002382]
[1736318769057,0.0459,95873.0,95855.0,0.0002382]
[1736318769263,0.417281,95859.0,95855.0,0.0002382]
[1736318769473,0.2,95854.0,95853.0,4e-07]
[1736318769676,0.2,95854.0,95849.0,6e-07]
[1736318769677,0.4322,95850.0,95849.0,6e-07]
[1736318769883,0.4322,95850.0,95833.0,8.53e-05]
[1736318769884,0.3781,95834.0,95833.0,8.53e-05]
[1736318770084,1.05694714,95834.0,95833.0,8.53e-05]
[1736318770303,3.04041744,95834.0,95833.0,8.53e-05]
[1736318770518,2.92743144,95834.0,95833.0,8.53e-05]
[1736318770728,2.68676373,95834.0,95833.0,8.53e-05]
[1736318770930,2.67580673,95834.0,95833.0,8.53e-05]
[1736318771132,1.28533914,95834.0,95833.0,8.53e-05]
[1736318771875,1.28892912,95834.0,95833.0,8.53e-05]
[1736318772274,1.09832112,95834.0,95833.0,8.53e-05]
[1736318772498,0.84404638,95834.0,95833.0,8.53e-05]
[1736318772849,0.98044359,95834.0,95833.0,8.53e-05]
[1736318773054,0.9373624,95834.0,95833.0,8.53e-05]
[1736318773477,1.04163714,95834.0,95833.0,8.53e-05]
[1736318774615,1.21071072,95834.0,95833.0,8.53e-05]
[1736318774812,1.31071072,95834.0,95833.0,8.53e-05]
[1736318775062,1.41498546,95834.0,95833.0,8.53e-05]
[1736318775905,1.21071072,95834.0,95833.0,8.53e-05]
[1736318776711,1.29163714,95834.0,95833.0,8.53e-05]
[1736318777351,1.31454557,95834.0,95833.0,8.53e-05]
[1736318777563,1.31632632,95834.0,95833.0,8.53e-05]
[1736318777995,0.208715,95824.0,95821.0,8.52e-05]
[1736318778221,0.858494,95824.0,95821.0,8.52e-05]
[1736318778436,0.911292,95824.0,95821.0,8.52e-05]
[1736318778931,0.250615,95824.0,95821.0,8.52e-05]
[1736318779138,0.585152,95824.0,95821.0,8.52e-05]
[1736318779343,0.616513,95824.0,95823.0,0.00059584]
[1736318779870,0.484986,95824.0,95823.0,0.00059584]
[1736318780277,0.250615,95824.0,95823.0,0.00059584]
[1736318780498,0.360484,95824.0,95823.0,0.00059584]
[1736318780744,0.250615,95824.0,95823.0,0.00059584]
[1736318781280,0.0419,95824.0,95823.0,0.00059584]
[1736318781969,0.02136715,95839.0,95823.0,0.00059584]
[1736318782166,0.03058441,95838.0,95823.0,0.00059584]
[1736318782392,0.20871,95827.0,95823.0,0.00059584]
[1736318783110,0.05349284,95838.0,95823.0,0.00059584]
[1736318783313,0.417394,95833.0,95823.0,0.00059584]
[1736318783534,0.208709,95828.0,95823.0,0.00059584]
[1736318783727,0.2295799,95828.0,95823.0,0.00059584]
[1736318783935,0.208711,95827.0,95823.0,0.00059584]
[1736318784308,0.417422,95827.0,95823.0,0.00059584]
[1736318785173,0.208713,95825.0,95823.0,0.00059584]
[1736318786394,0.0494,95824.0,95823.0,0.00059584]
[1736318786600,0.14530062,95824.0,95823.0,0.00059584]
[1736318787670,0.0494,95824.0,95823.0,0.00059584]
[1736318788380,1.70235468,95824.0,95823.0,0.00059584]
[1736318788800,1.76056168,95824.0,95823.0,0.00059584]
[1736318789570,1.52345968,95824.0,95823.0,0.00059584]
[1736318789803,1.35283868,95824.0,95823.0,0.00059584]
[1736318789977,1.12867268,95824.0,95823.0,0.00059584]
[1736318790180,0.71636317,95824.0,95823.0,0.00059584]
[1736318790579,0.1994,95824.0,95823.0,0.00059584]
[1736318790781,0.42545474,95824.0,95823.0,0.00059584]
[1736318791057,0.57889385,95824.0,95823.0,0.00059584]
[1736318791391,0.47461911,95824.0,95823.0,0.00059584]
[1736318792152,0.57461911,95824.0,95823.0,0.00059584]
[1736318792322,0.67461911,95824.0,95823.0,0.00059584]
[1736318792524,0.57461911,95824.0,95823.0,0.00059584]
[1736318794323,0.47461911,95824.0,95823.0,0.00059584]
[1736318794529,0.07998186,95824.0,95823.0,0.00059584]
[1736318794961,0.84830386,95824.0,95823.0,0.00059584]
[1736318795162,0.65200437,95824.0,95823.0,0.00059584]
[1736318795311,0.20586437,95824.0,95823.0,0.00059584]
[1736318797516,0.31013911,95824.0,95823.0,0.00059584]
[1736318799088,0.20586437,95824.0,95823.0,0.00059584]
[1736318799292,0.09856437,95824.0,95823.0,0.00059584]
[1736318800082,0.208709,95828.0,95823.0,0.00059584]
[1736318800531,0.47783206,95828.0,95823.0,0.00059584]
[1736318800748,0.417422,95826.0,95823.0,0.00059584]
[1736318800948,0.208715,95824.0,95823.0,0.00059584]
[1736318801153,1.77117374,95824.0,95823.0,0.00059584]
[1736318801324,0.9993889,95824.0,95823.0,0.00059584]
[1736318801485,1.00476777,95824.0,95823.0,0.00059584]
[1736318801683,0.60536977,95824.0,95823.0,0.00059584]
[1736318801887,0.60969297,95824.0,95823.0,0.00059584]
[1736318802962,0.44447397,95824.0,95823.0,0.00059584]
[1736318803363,0.34019923,95824.0,95823.0,0.00059584]
[1736318803858,0.290915,95824.0,95823.0,0.00059584]
[1736318804415,0.208715,95824.0,95823.0,0.01719584]
[1736318804629,0.358694,95834.0,95823.0,0.01719584]
[1736318804630,0.0419,95843.0,95823.0,0.12147058]
[1736318804870,0.0419,95843.0,95830.0,0.2087]
[1736318805078,0.0419,95843.0,95831.0,0.10427474]
[1736318805283,0.208676,95842.0,95823.0,0.01719584]
[1736318805480,0.02059073,95840.0,95823.0,0.12147058]
[1736318805655,0.02059073,95840.0,95823.0,0.33018658]
[1736318806139,0.03061107,95853.0,95823.0,0.33018658]
[1736318806140,0.0802,95879.0,95834.0,0.1511]
[1736318806338,0.308558,95897.0,95861.0,0.15]
[1736318806339,0.208558,95897.0,95861.0,0.15]
[1736318806564,0.208558,95897.0,95863.0,0.15]
[1736318806565,0.20857,95891.0,95863.0,0.15]
[1736318806813,0.208558,95897.0,95865.0,0.15]
[1736318807018,0.0802,95898.0,95870.0,0.208615]
[1736318807220,0.02121589,95913.0,95870.0,0.208615]
[1736318807221,0.0802,95913.0,95871.0,0.12831765]
[1736318807580,0.0802,95913.0,95871.0,0.82554763]
[1736318807581,0.208541,95905.0,95871.0,0.82554763]
[1736318807768,0.0003235,95872.0,95871.0,0.82450472]
[1736318807988,0.0003235,95872.0,95871.0,0.80150472]
[1736318808190,0.0003235,95872.0,95871.0,0.65150472]
[1736318808583,0.0003235,95872.0,95871.0,0.65450472]
[1736318809132,0.0003235,95872.0,95871.0,0.00682998]
[1736318809550,0.0003235,95872.0,95856.0,0.208644]
[1736318809753,0.0003235,95872.0,95858.0,0.208641]
[1736318809969,0.0003235,95872.0,95871.0,0.007]
[1736318810171,0.0003235,95872.0,95860.0,0.208637]
[1736318810380,0.0003235,95872.0,95861.0,0.10427474]
[1736318810596,0.0003235,95872.0,95861.0,0.11111282]
[1736318810805,0.0003235,95872.0,95861.0,0.10427474]
[1736318811389,0.02090921,95871.0,95861.0,0.10427474]
[1736318811599,0.0003235,95872.0,95862.0,0.417266]
[1736318811838,0.0003235,95872.0,95863.0,0.10427474]
[1736318812058,0.0003235,95872.0,95868.0,0.208619]
[1736318812259,0.0003235,95872.0,95870.0,0.208615]
[1736318812504,0.0003235,95872.0,95865.0,0.208626]
[1736318812704,0.0003235,95872.0,95866.0,0.10427474]
[1736318813937,0.0003235,95872.0,95860.0,0.208636]
[1736318814113,0.0003235,95872.0,95868.0,0.001]
[1736318814719,0.0003235,95872.0,95866.0,0.001]
[1736318814922,0.0003235,95872.0,95861.0,0.10427474]
[1736318815144,0.02123271,95872.0,95861.0,0.10427474]
[1736318815341,0.0003235,95872.0,95862.0,0.208633]
[1736318815549,0.208587,95884.0,95864.0,0.208628]
[1736318815550,0.1890811,95884.0,95864.0,0.208628]
[1736318815746,0.208582,95886.0,95865.0,0.10427474]
[1736318815988,0.208564,95894.0,95865.0,0.10531779]
[1736318816125,0.208564,95894.0,95871.0,0.417223]
[1736318816332,0.208564,95894.0,95872.0,0.16908609]
[1736318816529,0.208576,95888.0,95872.0,0.10427474]
[1736318816734,0.208591,95882.0,95856.0,0.208646]
[1736318816943,0.417182,95882.0,95860.0,0.0001529]
[1736318817135,0.417182,95882.0,95861.0,0.10427474]
[1736318817522,0.0625762,95881.0,95861.0,0.10427474]
[1736318817769,0.20863,95864.0,95860.0,0.0001529]
[1736318818029,0.208596,95879.0,95860.0,0.0001529]
[1736318818306,0.308012,95879.0,95860.0,0.0001529]
[1736318818546,0.30159874,95878.0,95860.0,0.0001529]
[1736318818801,0.1265,95880.0,95860.0,0.0001529]
[1736318819038,0.1265,95880.0,95861.0,0.10427474]
[1736318819281,0.1265,95880.0,95861.0,0.1147175]
[1736318819555,0.1265,95880.0,95861.0,0.10427474]
[1736318819808,0.1265,95880.0,95860.0,0.0001529]
[1736318820048,0.1265,95880.0,95860.0,0.0041529]
[1736318820299,0.208607,95874.0,95860.0,0.0001529]
[1736318820804,0.208632,95863.0,95860.0,0.0001529]
[1736318821046,0.20862,95868.0,95860.0,0.0001529]
[1736318821547,0.208633,95863.0,95860.0,0.0001529]
[1736318821805,0.208635,95861.0,95860.0,0.0001529]
[1736318822299,0.47681874,95861.0,95860.0,0.0001529]
[1736318822534,0.73109348,95861.0,95860.0,0.0001529]
[1736318822743,0.208695,95834.0,95823.0,0.0166852]
[1736318822947,0.0783,95860.0,95823.0,0.0166852]
[1736318822948,0.15,95856.0,95823.0,0.0166852]
[1736318823146,0.0419,95835.0,95823.0,0.0166852]
[1736318823374,0.208694,95834.0,95823.0,0.0166852]
[1736318823580,0.0481,95839.0,95823.0,0.0166852]
[1736318823781,0.208706,95829.0,95823.0,0.0166852]
[1736318823989,0.250597,95833.0,95823.0,0.0166852]
[1736318824228,0.208713,95826.0,95823.0,0.0166852]
[1736318824955,0.0822,95830.0,95823.0,0.0166852]
[1736318825214,0.208705,95829.0,95823.0,0.01719584]
[1736318825415,0.0822,95830.0,95823.0,0.01719584]
[1736318828482,0.208705,95829.0,95823.0,0.01719584]
[1736318829932,0.41741,95829.0,95823.0,0.01719584]
[1736318830880,0.0822,95830.0,95823.0,0.01719584]
[1736318831424,0.41741,95829.0,95823.0,0.01719584]
[1736318831826,0.417418,95827.0,95823.0,0.01719584]
[1736318832057,0.208713,95825.0,95823.0,0.01719584]
[1736318832410,1.28371174,95824.0,95823.0,0.01719584]
[1736318832628,1.22341874,95824.0,95823.0,0.01719584]
[1736318832833,1.18144274,95824.0,95823.0,0.01719584]
[1736318833039,0.1245,95824.0,95823.0,0.01719584]
[1736318833573,0.1786922,95824.0,95823.0,0.01719584]
[1736318833769,0.1245,95824.0,95823.0,0.01719584]
[1736318834182,0.0454,95824.0,95823.0,0.01719584]
[1736318835794,0.208713,95825.0,95823.0,0.01719584]
[1736318836352,0.208699,95832.0,95823.0,0.01719584]
[1736318837356,0.417398,95832.0,95823.0,0.01719584]
[1736318837568,0.208699,95832.0,95823.0,0.01719584]
[1736318837765,0.0541092,95831.0,95823.0,0.01719584]
[1736318837966,0.2087,95831.0,95823.0,0.01719584]
[1736318838200,0.208712,95826.0,95823.0,0.01719584]
[1736318838393,0.2087,95831.0,95823.0,0.01719584]
[1736318839597,0.417402,95831.0,95823.0,0.01719584]
[1736318839798,0.208712,95826.0,95823.0,0.01719584]
[1736318840164,0.208702,95830.0,95823.0,0.01719584]
[1736318842000,0.208707,95828.0,95823.0,0.01719584]
[1736318843585,0.208702,95830.0,95823.0,0.01719584]
[1736318844028,0.250596,95833.0,95823.0,0.01719584]
[1736318844214,0.0419,95833.0,95823.0,0.01719584]
[1736318844505,0.208698,95832.0,95823.0,0.01719584]
[1736318844968,0.0419,95833.0,95824.0,0.208715]
[1736318845197,0.0419,95833.0,95823.0,0.12147058]
[1736318845401,0.0419,95833.0,95824.0,0.00694943]
[1736318847604,0.20871,95827.0,95824.0,0.00694943]
[1736318847814,0.20871,95827.0,95823.0,0.01719584]
[1736318848425,0.208702,95830.0,95823.0,0.01719584]
[1736318848827,0.0419,95833.0,95824.0,0.10427474]
[1736318849246,0.0419,95833.0,95823.0,0.01719584]
[1736318849247,0.0419,95833.0,95825.0,0.00691232]
[1736318849462,0.0419,95833.0,95823.0,0.01719584]
[1736318849463,0.208698,95832.0,95823.0,0.01719584]
[1736318849733,0.0419,95833.0,95823.0,0.01719584]
[1736318849888,0.0818,95826.0,95823.0,0.01719584]
[1736318850093,1.16043974,95825.0,95823.0,0.01719584]
[1736318850284,1.11862574,95825.0,95823.0,0.01719584]
[1736318850523,0.0457,95824.0,95823.0,0.01719584]
[1736318850747,0.14997474,95824.0,95823.0,0.01719584]
[1736318851266,0.0457,95824.0,95823.0,0.01719584]
[1736318851747,0.198488,95824.0,95823.0,0.01719584]
[1736318852223,0.55703748,95824.0,95823.0,0.01719584]
[1736318852453,0.1957,95824.0,95823.0,0.01719584]
[1736318853178,0.0457,95824.0,95823.0,0.01719584]
[1736318853647,0.208713,95825.0,95823.0,0.01719584]
[1736318854898,0.20858745,95825.0,95823.0,0.01719584]
[1736318855108,0.31286219,95825.0,95823.0,0.01719584]
[1736318855730,0.422706,95824.0,95823.0,0.01719584]
[1736318856136,0.292302,95824.0,95823.0,0.01719584]
[1736318856341,0.39657674,95824.0,95823.0,0.01719584]
[1736318856555,0.1,95821.0,95820.0,8.52e-05]
[1736318856757,1.72621574,95821.0,95820.0,8.52e-05]
[1736318856966,1.22989974,95821.0,95820.0,8.52e-05]
[1736318857301,0.85039774,95821.0,95820.0,8.52e-05]
[1736318857525,0.71973474,95821.0,95820.0,8.52e-05]
[1736318860858,0.440822,95821.0,95820.0,8.52e-05]
[1736318861114,0.290822,95821.0,95820.0,8.52e-05]
[1736318864510,0.208722,95821.0,95820.0,8.52e-05]
[1736318870245,0.208744,95812.0,95790.0,0.27202075]
[1736318870497,0.208746,95810.0,95791.0,0.10427474]
[1736318870695,0.00104384,95811.0,95791.0,0.1211744]
[1736318870696,0.0419,95811.0,95791.0,0.1211744]
[1736318870911,0.0419,95811.0,95792.0,0.208785]
[1736318871124,0.0419,95811.0,95793.0,0.10427474]
[1736318871588,0.0419,95811.0,95794.0,0.0010438]
[1736318871802,0.0419,95811.0,95795.0,0.10427474]
[1736318871803,0.250645,95811.0,95795.0,0.10427474]
[1736318872595,0.2965828,95811.0,95795.0,0.10427474]
[1736318872809,0.250645,95811.0,95795.0,0.10427474]
[1736318875124,0.0419,95811.0,95795.0,0.31305274]
[1736318875325,0.0419,95811.0,95796.0,0.0010438]
[1736318875577,0.0419,95811.0,95797.0,0.31304874]
[1736318875762,0.0419,95811.0,95799.0,0.20877]
[1736318876005,0.0419,95811.0,95800.0,0.22984741]
[1736318876240,0.0419,95811.0,95803.0,0.15]
[1736318876475,0.0419,95811.0,95805.0,0.208757]
[1736318876684,0.0419,95811.0,95806.0,0.10427474]
[1736318877551,0.0419,95811.0,95798.0,0.20877]
[1736318877734,0.0419,95811.0,95800.0,0.208768]
[1736318877964,0.0419,95811.0,95801.0,0.10427474]
[1736318878183,0.06706728,95811.0,95801.0,0.10427474]
[1736318878361,0.20978984,95810.0,95794.0,0.28144389]
[1736318878590,0.20978984,95810.0,95795.0,0.10427474]
[1736318879455,0.417496,95809.0,95795.0,0.10427474]
[1736318879664,0.00104384,95808.0,95795.0,0.10427474]
[1736318880392,0.0758,95807.0,95795.0,0.10427474]
[1736318880594,0.00104384,95806.0,95795.0,0.10427474]
[1736318883515,0.0758,95807.0,95795.0,0.10427474]
[1736318883730,0.00104384,95810.0,95796.0,0.208776]
[1736318883955,0.0419,95811.0,95797.0,0.17005938]
[1736318884156,0.0419,95811.0,95798.0,0.208772]
[1736318884359,0.0419,95811.0,95800.0,0.208768]
[1736318884606,0.0419,95811.0,95801.0,0.10427474]
[1736318885980,0.0418,95811.0,95801.0,0.10427474]
[1736318888540,0.0417,95811.0,95801.0,0.10427474]
[1736318889465,0.0417,95811.0,95802.0,0.208763]
[1736318889687,0.0417,95811.0,95803.0,0.10427474]
[1736318890140,0.0417,95811.0,95805.0,0.208757]
[1736318890283,0.0417,95811.0,95806.0,0.10427474]
[1736318890748,0.0417,95811.0,95806.0,0.31302874]
[1736318891392,0.0417,95811.0,95806.0,0.52178274]
[1736318891578,0.0417,95811.0,95806.0,0.31302874]
[1736318892190,0.0417,95811.0,95806.0,0.10427474]
[1736318892477,0.0417,95811.0,95801.0,0.29180415]
[1736318892696,0.0417,95811.0,95804.0,0.10427474]
[1736318897581,0.0417,95811.0,95805.0,0.00104364]
[1736318897794,0.0417,95811.0,95806.0,0.10427474]
[1736318898022,0.0417,95811.0,95806.0,0.31302974]
[1736318898713,0.0417,95811.0,95809.0,0.023]
[1736318898938,0.00051001,95824.0,95810.0,0.10427474]
[1736318899143,0.00051001,95824.0,95816.0,0.208732]
[1736318899352,0.00051001,95824.0,95818.0,0.208729]
[1736318899560,0.00051001,95824.0,95816.0,0.208732]
[1736318899561,0.00051001,95824.0,95819.0,0.10427474]
[1736318899760,0.00051001,95824.0,95820.0,0.2097665]
[1736318899888,0.00051001,95824.0,95821.0,0.10427474]
[1736318900093,0.00051001,95824.0,95822.0,0.20872]
[1736318900321,0.00051001,95824.0,95822.0,0.39332692]
[1736318900520,0.00051001,95824.0,95822.0,0.10427474]
[1736318901370,0.00051001,95824.0,95822.0,0.31299274]
[1736318901746,0.00051001,95824.0,95823.0,0.10427474]
[1736318903827,0.00051001,95824.0,95820.0,0.01064451]
[1736318904048,0.00051001,95824.0,95812.0,0.208741]
[1736318904049,0.00051001,95824.0,95823.0,0.001]
[1736318904508,0.07665385,95824.0,95823.0,0.001]
[1736318904753,0.10519034,95824.0,95823.0,0.001]
[1736318905190,0.07561001,95824.0,95823.0,0.001]
[1736318905397,0.07561001,95824.0,95809.0,0.208747]
[1736318906235,0.20976184,95823.0,95804.0,0.208759]
[1736318906454,0.20976184,95823.0,95805.0,0.10531839]
[1736318906658,0.20976184,95823.0,95805.0,0.10427474]
[1736318906867,0.20976184,95823.0,95806.0,0.208755]
[1736318907078,0.20976184,95823.0,95807.0,0.10427474]
[1736318907327,0.07561001,95824.0,95808.0,0.20875]
[1736318907535,0.07561001,95824.0,95810.0,0.12557267]
[1736318907951,0.00104384,95823.0,95810.0,0.12557267]
[1736318908164,0.02958033,95823.0,95807.0,0.10427474]
[1736318909004,0.00104384,95823.0,95808.0,0.20875]
[1736318909209,0.07561001,95824.0,95810.0,0.12557267]
[1736318909412,0.07561001,95824.0,95811.0,0.31301874]
[1736318911408,0.07561001,95824.0,95811.0,0.10427474]
[1736318911618,0.028432,95823.0,95811.0,0.10427474]
[1736318912163,0.07561001,95824.0,95812.0,0.208742]
[1736318912360,0.07561001,95824.0,95812.0,0.31301674]
[1736318912974,0.07561001,95824.0,95812.0,0.30801674]
[1736318913172,0.07561001,95824.0,95812.0,0.10427474]
[1736318914110,0.07561001,95824.0,95813.0,0.10531834]
[1736318914327,0.00051001,95824.0,95816.0,0.023]
[1736318914533,0.00051001,95824.0,95822.0,0.15]
[1736318914764,0.00051001,95824.0,95823.0,0.48703606]
[1736318914975,0.00051001,95824.0,95823.0,1.3656361]
[1736318915185,0.0001706,95860.0,95847.0,0.208665]
[1736318915407,0.00032356,95850.0,95848.0,0.1053179]
[1736318916036,0.00032356,95850.0,95848.0,0.10427474]
[1736318916248,0.00032356,95850.0,95839.0,0.0010432]
[1736318916249,0.00032356,95850.0,95844.0,0.2811727]
[1736318916459,0.0462,95848.0,95844.0,0.2811727]
[1736318916679,0.20970884,95847.0,95844.0,0.2811727]
[1736318916886,0.00104384,95847.0,95825.0,0.2811727]
[1736318917098,0.208678,95842.0,95825.0,0.2811727]
[1736318917305,0.208681,95840.0,95825.0,0.2811727]
[1736318917527,0.00104384,95839.0,95816.0,0.15]
[1736318917794,0.00104384,95839.0,95818.0,0.15]
[1736318918105,0.00104384,95839.0,95819.0,0.10427474]
[1736318918352,0.208687,95837.0,95819.0,0.10427474]
[1736318918631,0.00104384,95836.0,95825.0,0.002]
[1736318918828,0.0778,95834.0,95814.0,0.01059838]
[1736318919059,0.0778,95832.0,95813.0,0.2811727]
[1736318919305,0.0492,95835.0,95819.0,0.002]
[1736318919306,0.208715,95825.0,95819.0,0.002]
[1736318919541,0.07884384,95824.0,95819.0,0.002]
[1736318919792,0.0477,95822.0,95819.0,0.002]
[1736318920016,0.00104384,95821.0,95819.0,0.002]
[1736318920225,0.0751,95820.0,95819.0,0.002]
[1736318920446,0.07614384,95820.0,95796.0,0.29178365]
[1736318920689,0.20874,95813.0,95797.0,0.04173563]
[1736318920947,0.0751,95812.0,95796.0,0.10427474]
[1736318921201,0.0701,95812.0,95796.0,0.10427474]
[1736318921465,0.0701,95812.0,95796.0,0.10478475]
[1736318921715,0.208746,95810.0,95796.0,0.10478475]
[1736318921995,0.00104384,95809.0,95796.0,0.10678475]
[1736318922215,0.00104384,95811.0,95796.0,0.10678475]
[1736318922461,0.00104384,95810.0,95796.0,0.00251001]
[1736318923400,0.00104384,95810.0,95796.0,0.00351001]
[1736318923899,0.00104384,95811.0,95796.0,0.00251001]
[1736318924122,0.00104384,95810.0,95796.0,0.00351001]
[1736318924839,0.00104384,95810.0,95796.0,0.00151001]
[1736318925317,0.00104384,95811.0,95796.0,0.00351001]
[1736318925550,0.00104384,95810.0,95796.0,0.00051001]
[1736318925773,0.00104384,95810.0,95796.0,0.00151001]
[1736318926277,0.0755,95808.0,95796.0,0.00051001]
[1736318926533,0.208771,95799.0,95796.0,0.00051001]
[1736318926993,0.0418,95798.0,95796.0,0.00051001]
[1736318927214,0.208774,95797.0,95796.0,0.00051001]
[1736318927692,0.0418,95798.0,95796.0,0.00051001]
[1736318928447,0.208774,95797.0,95796.0,0.00051001]
[1736318930143,0.0418,95798.0,95796.0,0.00051001]
[1736318930391,0.208774,95797.0,95796.0,0.00051001]
[1736318931859,0.0418,95798.0,95796.0,0.00051001]
[1736318932319,0.250574,95798.0,95796.0,0.00051001]
[1736318932781,0.00104384,95797.0,95796.0,0.00051001]
[1736318933020,0.250574,95798.0,95796.0,0.00051001]
[1736318933254,0.00104384,95797.0,95796.0,0.00051001]
[1736318933951,0.250574,95798.0,95796.0,0.00051001]
[1736318934418,0.00104384,95797.0,95796.0,0.00051001]
[1736318934885,0.250574,95798.0,95796.0,0.00051001]
[1736318935125,0.1277336,95797.0,95796.0,0.00051001]
[1736318935398,0.28190834,95797.0,95796.0,0.00051001]
[1736318935660,0.0818,95790.0,95781.0,8.53e-05]
[1736318935919,0.2088,95785.0,95784.0,0.00023855]
[1736318936392,0.335,95785.0,95784.0,0.00023855]
[1736318936657,0.1262,95785.0,95784.0,0.00023855]
[1736318938951,0.1262,95785.0,95784.0,0.00123855]
[1736318939230,0.1262,95785.0,95784.0,0.00023855]
[1736318940712,0.1262,95785.0,95784.0,0.00123855]
[1736318940958,0.1262,95785.0,95784.0,0.00023855]
[1736318941200,0.1262,95785.0,95784.0,0.00123855]
[1736318942833,0.0804,95785.0,95784.0,0.00123855]
[1736318943038,0.082,95795.0,95784.0,0.00123855]
[1736318943259,0.00104384,95794.0,95784.0,0.00123855]
[1736318943667,0.208783,95793.0,95784.0,0.00123855]
[1736318943874,0.06000442,95792.0,95784.0,0.00123855]
[1736318944101,0.00104384,95792.0,95784.0,0.00023855]
[1736318944303,0.20879,95790.0,95784.0,0.00023855]
[1736318944502,0.208799,95786.0,95784.0,0.00023855]
[1736318944675,0.00104384,95785.0,95784.0,0.00023855]
[1736318944875,0.208786,95792.0,95784.0,0.00023855]
[1736318945087,0.250574,95798.0,95787.0,0.208795]
[1736318945088,0.00104384,95791.0,95787.0,0.208795]
[1736318945304,0.082,95820.0,95788.0,0.12623062]
[1736318945549,0.082,95820.0,95810.0,0.12557267]
[1736318945749,0.1238,95820.0,95801.0,0.208765]
[1736318945997,0.00104384,95819.0,95806.0,0.208754]
[1736318946209,0.12484384,95820.0,95806.0,0.208754]
[1736318946375,0.00104384,95819.0,95802.0,0.31303774]
[1736318946580,0.00104384,95819.0,95796.0,0.208776]
[1736318946762,0.20874,95813.0,95797.0,0.10427474]
[1736318946977,0.208744,95811.0,95792.0,0.208785]
[1736318947166,0.00104384,95810.0,95793.0,0.10427474]
[1736318947980,0.00104384,95810.0,95794.0,0.208781]
[1736318948178,0.00104384,95810.0,95795.0,0.10427474]
[1736318948521,0.208733,95816.0,95795.0,0.10427474]
[1736318948735,0.06209562,95815.0,95796.0,0.208776]
[1736318949544,0.208737,95814.0,95796.0,0.208776]
[1736318949743,0.00104384,95813.0,95796.0,0.208776]
[1736318951397,0.1238,95820.0,95800.0,0.12557267]
[1736318951630,0.1238,95820.0,95800.0,0.10427474]
[1736318951878,0.1238,95820.0,95802.0,0.208763]
[1736318952043,0.1238,95820.0,95803.0,0.03140815]
[1736318952249,0.1238,95820.0,95802.0,0.19448475]
[1736318952603,0.00104384,95819.0,95800.0,0.10427474]
[1736318952829,0.208729,95818.0,95800.0,0.10427474]
[1736318953060,0.00104384,95817.0,95801.0,0.208766]
[1736318954167,0.208733,95816.0,95800.0,0.10427474]
[1736318954345,0.00104384,95815.0,95800.0,0.10427474]
[1736318955201,0.00104384,95815.0,95801.0,0.208766]
[1736318955417,0.00104384,95819.0,95801.0,0.208766]